fUSD/lending_fUSD_20240331
["ID","MTS","AMOUNT","RATE_DAILY","PERIOD"]
[321131672,1711903839827,-150.0,0.000635,120]
[321131673,1711903839836,-477.78,0.00063515,2]
[321131674,1711903839845,-1358.15356004,0.00063684,2]
[321131675,1711903839855,-155.5561422,0.00063734,120]
[321131676,1711903839864,-150.53,0.00063747,120]
[321131677,1711903839873,-157.125,0.00063808,120]
[321131678,1711903839882,-177.99324505,0.0006389,44]
[321131679,1711903839892,-300.0,0.000639,120]
[321131680,1711903839901,-5000.0,0.000639,120]
[321131681,1711903839910,-170.52421203,0.000639,2]
[321131682,1711903839919,-917.95465,0.000639,115]
[321131683,1711903839928,-183.64012444,0.000639,2]
[321131684,1711903839937,-2329.31253438,0.000639,2]
[321131685,1711903839946,-4559.33586381,0.0006394,7]
[321131686,1711903839955,-6842.09011438,0.00063989,2]
[321131687,1711903839964,-150.0,0.00063989,30]
[321131688,1711903839973,-62578.8448678,0.0006399,30]
[321131689,1711903839982,-22630.13103772,0.0006399,2]
[321131690,1711903839991,-587.42178638,0.0006399,7]
[321131691,1711903840000,-1714.2547516,0.0006399,7]
[321131692,1711903840010,-4241.45895664,0.0006399,7]
[321131693,1711903840019,-200.0,0.0006399,30]
[321131694,1711903840029,-5300.0,0.0006399,30]
[321131695,1711903840038,-5300.0,0.0006399,29]
[321131696,1711903840047,-211.96123239,0.00063998,14]
[321131697,1711903840082,-251.72529171,0.000639,2]
[321131698,1711903840091,-688.46960125,0.00063998,14]
[321131699,1711903840102,-463.40972193,0.00063998,14]
[321131700,1711903840113,-468.67992952,0.00063998,14]
[321131701,1711903840124,-1153.91591184,0.00063998,14]
[321131702,1711903840135,-9670.42491787,0.00063998,14]
[321131703,1711903840150,-873.59999982,0.00063998,14]
[321131704,1711903840161,-39470.45520886,0.00063998,14]
[321131705,1711903840170,-1411.25333323,0.00063998,7]
[321131706,1711903840181,-484.23808323,0.00063998,7]
[321131707,1711903840193,-5969.89164415,0.00063998,7]
[321131708,1711903840202,-1278.37267451,0.00063998,4]
[321131709,1711903840211,-4704.44008421,0.00063998,7]
[321131710,1711903840221,-193.93962218,0.00063998,7]
[321131711,1711903840229,-266.05549348,0.00063998,7]
[321131712,1711903840238,-155.0,0.00063998,7]
[321131713,1711903840248,-1238.0053581,0.00063998,7]
[321131714,1711903840258,-668.77110589,0.00063998,7]
[321131715,1711903840267,-258.46764721,0.00063998,7]
[321131716,1711903840276,-3556.12482354,0.00064,64]
[321131717,1711903840288,-281.07314765,0.00064,64]
[321131725,1711903842621,-318.0,0.00064,64]
[321131727,1711903842942,-837.93466786,0.00064,64]
[321131728,1711903842996,-45748.27400864,0.00064,64]
[321131729,1711903843008,-473.40211483,0.00064,64]
[321131730,1711903843053,-4554.4153085,0.00064,64]
[321131843,1711903869895,25000.0,0.00025,2]
[321131844,1711903869921,25000.0,0.00025,2]
[321131845,1711903869943,65000.0,0.00025,2]
[321131846,1711903869970,1018740.10628803,0.00025,2]
[321131847,1711903896852,587.42178638,0.00025,2]
[321131848,1711903900252,2455.33346268,0.00025,2]
[321131849,1711903901026,1714.2547516,0.00025,2]
[321131850,1711903916246,2250.48213135,0.00025,2]
[321131851,1711903920114,22630.13103772,0.00025,2]
[321131857,1711904037481,256122.27054224,0.00025,2]
[321131858,1711904037510,384855.80546504,0.00025,2]
[321131870,1711904739401,1103.75619033,0.0003,120]
[321131913,1711905034018,-350.0,0.00033,3]
[321131916,1711905034027,-400.0,0.00035,3]
[321131919,1711905034038,-108.16390953,0.00037,3]
[321131922,1711905034210,-341.83609047,0.00037,3]
[321131923,1711905034220,-2030.4152639,0.0003929,2]
[321131924,1711905034231,-975.2537361,0.0003929,2]
[321131925,1711905034240,-856.22108814,0.0003929,2]
[321131926,1711905034249,-177.04195319,0.0003929,2]
[321131927,1711905034260,-1416.76496623,0.0003929,2]
[321131928,1711905034273,-3224.59178058,0.0003929,2]
[321131929,1711905034282,-2095.82997844,0.0003939,4]
[321131930,1711905034292,-353.59,0.0003957,2]
[321131931,1711905034301,-2124.68138223,0.0003988,2]
[321131932,1711905034314,-21435.48130774,0.0003988,2]
[321131933,1711905034323,-166.68,0.00040274,2]
[321131934,1711905034333,-166.66,0.00040274,2]
[321131935,1711905034342,-150.35,0.00040733,2]
[321131936,1711905034351,-181.91,0.00040799,2]
[321131937,1711905034360,-168.89,0.00040876,2]
[321131938,1711905034369,-159.92,0.00040887,15]
[321131939,1711905034378,-400.0,0.00041025,2]
[321131940,1711905034387,-508.78,0.00041081,2]
[321131941,1711905034396,-2107.85346316,0.00041142,60]
[321131942,1711905034407,-392.14653684,0.00041142,60]
[321131943,1711905034416,-250.0,0.00041205,2]
[321131944,1711905034425,-1852.42,0.00041214,2]
[321131945,1711905034434,-521.62,0.0004127,2]
[321131946,1711905034444,-23890.0,0.00041316,2]
[321131947,1711905034453,-250.0,0.00041364,2]
[321131948,1711905034463,-500.0,0.00041488,2]
[321131949,1711905034472,-353.59,0.00041834,2]
[321131950,1711905034481,-1280.6,0.00042092,2]
[321131951,1711905034490,-2466.3721,0.00042364,2]
[321131952,1711905034499,-2500.0,0.00042364,2]
[321131953,1711905034507,-8761.686241,0.000424,2]
[321131954,1711905034516,-212.75616934,0.00042452,14]
[321131955,1711905034525,-458.40928326,0.00042452,17]
[321131956,1711905034534,-290.68792161,0.00042462,4]
[321131957,1711905034543,-273.76874797,0.00042463,31]
[321131958,1711905034553,-164699.8774,0.00042464,2]
[321131959,1711905034563,-261.73583533,0.000425,7]
[321131960,1711905034571,-301.61938684,0.00042513,2]
[321131961,1711905034581,-200.61373683,0.00042542,2]
[321131962,1711905034589,-7633.12047446,0.00042552,30]
[321131963,1711905034599,-540.86955247,0.00042552,5]
[321131964,1711905034612,-57745.43197028,0.00042552,2]
[321131965,1711905034623,-3230.63302066,0.00042552,2]
[321131971,1711905037871,-4913.34086859,0.00042552,2]
[321131972,1711905037880,-1210.0,0.00042552,2]
[321131973,1711905037890,-2143.14739537,0.00042552,2]
[321131974,1711905037900,-1909.91023401,0.00042552,5]
[321131975,1711905037909,-672.62010505,0.00042552,10]
[321131976,1711905037918,-337.86276515,0.00042552,2]
[321131977,1711905037928,-2917.30009135,0.00042552,2]
[321131978,1711905037936,-2403.50834168,0.00042552,2]
[321131979,1711905037949,-694.67468814,0.00042552,2]
[321131980,1711905037961,-1572.41506145,0.00042552,2]
[321131981,1711905037970,-221.19261667,0.00042552,2]
[321131982,1711905037979,-365.85546114,0.00042552,2]
[321131983,1711905037988,-1475.21985885,0.00042552,2]
[321131984,1711905037998,-7153.15761776,0.00042552,2]
[321131985,1711905038007,-7006.08511232,0.00042552,2]
[321131986,1711905038017,-5096.24044824,0.00042552,2]
[321131987,1711905038027,-151.9364922,0.00042552,2]
[321131988,1711905038039,-9987.90608371,0.00042552,2]
[321131989,1711905038050,-241.43274665,0.00042552,2]
[321131990,1711905038059,-5030.41635383,0.00042552,2]
[321131991,1711905038067,-2652.44180367,0.00042552,2]
[321131992,1711905038078,-2381.36851928,0.00042552,2]
[321131993,1711905038087,-5440.24097153,0.00042552,2]
[321131994,1711905038096,-133261.80916397,0.00042552,2]
[321131995,1711905038106,-3151.19606477,0.00042552,2]
[321131996,1711905038115,-10107.25390316,0.00042552,2]
[321131997,1711905038124,-939.93595278,0.00042552,5]
[321131998,1711905038134,-159.10662063,0.00042552,2]
[321131999,1711905038143,-22122.41533661,0.00042552,2]
[321132000,1711905038152,-14680.7178866,0.00042552,2]
[321132001,1711905038162,-7488.53932557,0.00042552,2]
[321132002,1711905038171,-1036.81030251,0.00042552,2]
[321132003,1711905038180,-5791.00797833,0.00042552,2]
[321132004,1711905038190,-2134.51945293,0.00042552,10]
[321132005,1711905038199,-65344.55646072,0.00042552,2]
[321132006,1711905038209,-843.86132304,0.00042552,2]
[321132007,1711905038218,-1014.2159528,0.00042552,2]
[321132008,1711905038227,-570.01858583,0.00042552,5]
[321132009,1711905038237,-185.22195337,0.00042552,2]
[321132010,1711905038246,-8958.37472095,0.00042552,2]
[321132011,1711905038255,-1272.15693889,0.00042552,2]
[321132012,1711905038265,-824.57231804,0.00042552,10]
[321132013,1711905038275,-4796.18192549,0.00042552,2]
[321132014,1711905038284,-477.987727,0.00042552,2]
[321132015,1711905038293,-7200.32174558,0.00042552,2]
[321132016,1711905038302,-22010.21527878,0.00042552,2]
[321132017,1711905038311,-1864.99453782,0.00042552,2]
[321132018,1711905038320,-13971.01625987,0.00042552,3]
[321132019,1711905038329,-643.0,0.00042552,2]
[321132020,1711905038339,-4000.0,0.00042552,3]
[321132021,1711905038348,-941.57293959,0.00042552,2]
[321132022,1711905038357,-9032.31966584,0.00042552,2]
[321132023,1711905038366,-500.0,0.00042552,10]
[321132024,1711905038376,-556.14432193,0.00042552,2]
[321132025,1711905038385,-50000.0,0.00042552,2]
[321132026,1711905038394,-1783.91680961,0.00042552,2]
[321132027,1711905038404,-169.46816586,0.00042552,2]
[321132028,1711905038412,-6621.64013298,0.00042552,2]
[321132029,1711905038423,-550.0,0.00042552,2]
[321132030,1711905038432,-978.46846485,0.00042552,2]
[321132031,1711905038442,-501.25808919,0.00042552,2]
[321132032,1711905038451,-500.0,0.00042552,2]
[321132033,1711905038460,-2540.7614919,0.00042552,2]
[321132034,1711905038470,-213048.0657253,0.00042552,7]
[321132035,1711905038479,-6000.0,0.00042552,2]
[321132036,1711905038488,-944.61087167,0.00042552,4]
[321132037,1711905038497,-1003.20879303,0.00042552,2]
[321132038,1711905038506,-546.97179548,0.00042552,2]
[321132039,1711905038515,-150.0,0.00042552,2]
[321132040,1711905038525,-634.3584294,0.00042552,2]
[321132041,1711905038534,-608.43470572,0.00042552,2]
[321132042,1711905038543,-233.99300355,0.00042552,5]
[321132043,1711905038552,-208.62400116,0.00042552,2]
[321132044,1711905038561,-69222.65612516,0.00042552,7]
[321132045,1711905038577,-3751.56582909,0.00042552,7]
[321132046,1711905038588,-102764.07263253,0.00042552,7]
[321132047,1711905038601,-10510.64443999,0.00042552,7]
[321132048,1711905038612,-1060.70346439,0.00042552,7]
[321132049,1711905038624,-661.48925802,0.00042552,7]
[321132050,1711905038635,-981.97731131,0.00042552,7]
[321132051,1711905038651,-300.64267971,0.00042552,7]
[321132054,1711905039835,-4720.6272777,0.00042552,7]
[321132055,1711905039846,-250.5,0.00042552,7]
[321132056,1711905039890,-36344.24987568,0.00042552,7]
[321132057,1711905039945,-290.77689149,0.00042552,7]
[321132058,1711905040000,-621.95505591,0.00042552,7]
[321132059,1711905040012,-360.87503929,0.00042552,7]
[321132066,1711905043112,-155.387449,0.00042551,4]
[321132067,1711905043122,-6111.1128565,0.00042552,7]
[321132068,1711905043192,-0.49999312,0.00042552,7]
[321132096,1711905045935,-232.24699034,0.00042551,4]
[321132097,1711905045946,-9871.62577971,0.00042552,7]
[321132098,1711905046115,-10348.94196536,0.00042552,7]
[321132099,1711905046131,-155.37363475,0.00042551,4]
[321132100,1711905046140,-333.65323521,0.00042552,7]
[321132112,1711905133988,-781.71630155,0.00029999,2]
[321132113,1711905280135,155.0,0.00028499,30]
[321132115,1711905290648,212.3132292,0.00029099,2]
[321132116,1711905290670,194.55865564,0.00029099,2]
[321132117,1711905298086,155.0,0.00028499,30]
[321132118,1711905306642,17.75457356,0.00029099,2]
[321132119,1711905306663,212.3132292,0.00029099,2]
[321132120,1711905306687,137.13212626,0.00029099,2]
[321132121,1711905314092,155.0,0.00028499,30]
[321132122,1711905319787,75.18110294,0.00028499,2]
[321132123,1711905319808,212.3132292,0.00028499,2]
[321132124,1711905319827,212.3132292,0.00028499,2]
[321132125,1711905319845,212.3132292,0.00028499,2]
[321132126,1711905319864,212.3132292,0.00028499,2]
[321132127,1711905319883,212.3132292,0.00028499,2]
[321132128,1711905319902,35.76801619,0.00028499,2]
[321132129,1711905320473,155.0,0.00028499,2]
[321132130,1711905326765,21.54521301,0.00028499,2]
[321132132,1711905334096,155.0,0.00027074,30]
[321132133,1711905350142,155.0,0.00027074,30]
[321132136,1711905438107,-791.26292636,0.00027073,2]
[321132137,1711905438130,-447.47414728,0.00027073,2]
[321132141,1711905481614,-342.0,0.00027074,2]
[321132143,1711905511791,-155.0,0.00027073,2]
[321132144,1711905511829,-255.0,0.00027073,2]
[321132145,1711905547743,-109.2782477,0.00027073,2]
[321132146,1711905547782,-312.4435046,0.00027073,2]
[321132147,1711905549895,565.51229858,0.00020305,2]
[321132148,1711905582438,-10.11019748,0.00027073,2]
[321132149,1711905582470,-315.50135734,0.00027073,2]
[321132150,1711905582507,-48.77689036,0.00027073,2]
[321132151,1711905584340,359.78822378,0.00020305,2]
[321132152,1711905598429,322.55370208,0.00020305,2]
[321132153,1711905600297,312.52517294,0.00020305,2]
[321132154,1711905624046,283.55008744,0.00020305,2]
[321132155,1711905628901,-199.74674834,0.00028499,2]
[321132156,1711905629855,169.51895444,0.00020305,2]
[321132157,1711905635986,224.10750396,0.00024,2]
[321132158,1711905737018,1475.25724696,0.00024,2]
[321132160,1711905856244,375.95966631,0.00024,2]
[321132190,1711906194403,1131.15465862,0.00024,2]
[321132191,1711906194462,359.42818938,0.00024,2]
[321132194,1711906196426,9098.75586042,0.0002,2]
[321132195,1711906197819,155.41796221,0.00024,2]
[321132196,1711906198013,224.20800371,0.00024,2]
[321132197,1711906202765,405.96324163,0.0002328,2]
[321132198,1711906203108,11845.83772104,0.00024,2]
[321132199,1711906203153,672.10691344,0.00024,2]
[321132200,1711906203920,291.58831734,0.00024,2]
[321132201,1711906204698,178.69072463,0.00024,2]
[321132202,1711906210345,539.25313179,0.00024,2]
[321132203,1711906210589,173.37121215,0.00024,2]
[321132204,1711906212305,317.71085646,0.00024,2]
[321132205,1711906220011,224.20800371,0.00024,2]
[321132206,1711906221938,291.58831734,0.00024,2]
[321132214,1711906231985,-173.03209983,0.00028471,2]
[321132216,1711906231996,-326.96790017,0.00028499,2]
[321132217,1711906232094,-985.41621983,0.00028499,2]
[321132218,1711906232105,-350.0,0.00033,3]
[321132219,1711906232114,-575.7084,0.00033182,2]
[321132220,1711906232125,-1083.42655578,0.00033282,2]
[321132221,1711906232137,-530.55108814,0.00033282,4]
[321132222,1711906232148,-1312.38412,0.00033499,2]
[321132223,1711906232158,-171.50784,0.00036438,14]
[321132224,1711906232168,-712.94434592,0.00037127,7]
[321132225,1711906232179,-373.09,0.00037128,2]
[321132226,1711906232190,-68032.73,0.00037128,2]
[321132227,1711906232200,-499.99,0.0003726,2]
[321132228,1711906232215,-150.99,0.0003726,2]
[321132229,1711906232225,-171.50784,0.0003726,14]
[321132230,1711906232236,-171.50784,0.00038082,14]
[321132231,1711906232245,-1312.38413,0.00038499,2]
[321132232,1711906232255,-171.50784,0.00038904,14]
[321132233,1711906232265,-2030.4153,0.00039025,2]
[321132234,1711906232275,-181.91,0.00039086,2]
[321132235,1711906232285,-1000.0,0.00039339,2]
[321132236,1711906232295,-200.0,0.00039369,2]
[321132237,1711906232304,-373.09,0.00039392,2]
[321132238,1711906232314,-159.92,0.00039397,15]
[321132239,1711906232323,-3805.84,0.00039654,2]
[321132240,1711906232333,-171.50784,0.00039726,14]
[321132241,1711906232343,-250.0,0.00039967,2]
[321132242,1711906232353,-150.23,0.0004025,2]
[321132243,1711906232363,-166.67,0.00040274,2]
[321132244,1711906232374,-166.66,0.00040274,2]
[321132245,1711906232384,-10726.11,0.00040452,2]
[321132246,1711906232394,-437.46,0.00040527,2]
[321132247,1711906232404,-171.50784,0.00040548,14]
[321132248,1711906232414,-434.68,0.00040566,2]
[321132249,1711906232425,-240.12,0.000406,2]
[321132250,1711906232434,-175.5,0.00041096,2]
[321132251,1711906232446,-167.14,0.00041234,2]
[321132252,1711906232456,-169.45,0.00041353,2]
[321132253,1711906232466,-805.67,0.00041361,30]
[321132254,1711906232476,-19684.34638921,0.00041362,2]
[321132255,1711906232486,-155.0,0.0004137,4]
[321132256,1711906232497,-171.50784,0.0004137,14]
[321132257,1711906232506,-96482.19,0.00041371,2]
[321132258,1711906232516,-2500.0,0.00041504,2]
[321132259,1711906232526,-2988.29756732,0.00041556,2]
[321132260,1711906232535,-352.69399857,0.00041602,4]
[321132261,1711906232545,-155.2003905,0.00041602,4]
[321132262,1711906232555,-856.97871437,0.00041603,4]
[321132263,1711906232565,-373.09,0.00041656,2]
[321132264,1711906232575,-7885.5176169,0.00041779,2]
[321132265,1711906232585,-2135.95,0.00041879,2]
[321132266,1711906232595,-1190.29,0.00042,2]
[321132267,1711906232605,-1000.0,0.00042064,2]
[321132268,1711906232615,-156.67,0.00042154,2]
[321132269,1711906232625,-17875.0817,0.00042164,2]
[321132270,1711906232635,-171.50784,0.00042192,14]
[321132271,1711906232645,-212.75616934,0.00042263,14]
[321132272,1711906232659,-301.14880045,0.00042264,2]
[321132273,1711906232669,-3767.5773,0.00042264,2]
[321132274,1711906232679,-1000.0,0.00042264,2]
[321132275,1711906232690,-100000.0,0.00042264,2]
[321132276,1711906232701,-7838.0756,0.00042264,2]
[321132277,1711906232712,-39856.13,0.00042264,2]
[321132278,1711906232724,-156.67,0.00042354,2]
[321132279,1711906232735,-206.04446897,0.00042362,4]
[321132280,1711906232745,-500.0,0.00042363,8]
[321132281,1711906232756,-500.0,0.00042363,8]
[321132282,1711906232767,-1321.94356542,0.00042363,4]
[321132283,1711906232779,-5287.6122,0.00042364,2]
[321132284,1711906232790,-175147.7749,0.00042364,2]
[321132285,1711906232800,-9638.6367,0.00042364,2]
[321132286,1711906232811,-1152.8504,0.00042364,2]
[321132287,1711906232822,-161.02408066,0.00042409,7]
[321132288,1711906232832,-153.7760937,0.00042421,15]
[321132289,1711906232842,-420.2085096,0.00042421,16]
[321132290,1711906232854,-285.27143445,0.00042437,2]
[321132291,1711906232866,-169.60675175,0.00042447,2]
[321132292,1711906232876,-7320.15907725,0.00042451,4]
[321132293,1711906232888,-500.0,0.00042452,2]
[321132294,1711906232899,-3274.5288,0.00042452,2]
[321132295,1711906232911,-285.27143445,0.00042511,2]
[321132296,1711906232922,-4559.33586381,0.00042511,4]
[321132297,1711906232933,-182.0,0.00042517,15]
[321132298,1711906232947,-117010.41989418,0.00042521,7]
[321132299,1711906233122,-76104.14947735,0.00042521,7]
[321132300,1711906236009,225.31663494,0.00024,2]
[321132301,1711906236799,295.67411619,0.00024,2]
[321132303,1711906238059,-1081388.75944882,0.00042521,7]
[321132304,1711906238069,-436.46975996,0.00042521,2]
[321132305,1711906238078,-1036.29166687,0.00042521,2]
[321132306,1711906238089,-2500.0,0.00042521,2]
[321132307,1711906238098,-562.78055981,0.00042521,2]
[321132308,1711906238108,-2311.81680079,0.00042521,2]
[321132309,1711906238117,-233.80346046,0.00042521,2]
[321132310,1711906238126,-1065.7852371,0.00042521,7]
[321132311,1711906238135,-523.54471295,0.00042521,2]
[321132312,1711906238144,-886.3753014,0.00042521,2]
[321132313,1711906238154,-9258.00764253,0.00042521,2]
[321132314,1711906238163,-467.77328392,0.00042521,2]
[321132315,1711906238173,-384.4238418,0.00042521,2]
[321132316,1711906238184,-240.08105957,0.00042521,2]
[321132317,1711906238195,-23853.83877731,0.00042521,14]
[321132318,1711906238204,-1115.98769307,0.00042521,10]
[321132319,1711906238214,-1763.48197311,0.00042521,2]
[321132320,1711906238223,-1374.98423013,0.00042521,10]
[321132321,1711906238233,-532.03852694,0.00042521,2]
[321132322,1711906238243,-4898.13681948,0.00042521,2]
[321132323,1711906238253,-738.85617067,0.00042521,10]
[321132324,1711906238264,-353.91956168,0.00042521,2]
[321132325,1711906238274,-591.63747715,0.00042521,2]
[321132326,1711906238286,-3032.09827416,0.00042521,7]
[321132327,1711906238296,-192.28621157,0.00042521,7]
[321132328,1711906238306,-18936.72762934,0.00042521,3]
[321132329,1711906238317,-1784.70607232,0.00042521,2]
[321132330,1711906238327,-3832.89479173,0.00042521,3]
[321132331,1711906238512,-118049.07905891,0.00042521,14]
[321132332,1711906238523,-337.06952388,0.00042521,2]
[321132333,1711906238533,-1051.66325488,0.00042521,7]
[321132334,1711906238543,-1329.81484633,0.00042521,20]
[321132335,1711906238552,-5028.66795686,0.00042521,2]
[321132336,1711906238562,-1458.40708415,0.00042521,14]
[321132337,1711906238571,-204.69310846,0.00042521,5]
[321132338,1711906238580,-1003.6667417,0.00042521,2]
[321132339,1711906238590,-213.89584315,0.00042521,2]
[321132340,1711906238599,-636.29558818,0.00042521,2]
[321132341,1711906238608,-1002.79407176,0.00042521,2]
[321132342,1711906238617,-3305.64,0.00042521,2]
[321132343,1711906238626,-3305.64,0.00042521,2]
[321132344,1711906238636,-3305.64,0.00042521,2]
[321132345,1711906238645,-3305.64,0.00042521,2]
[321132346,1711906238655,-3305.64,0.00042521,2]
[321132347,1711906238664,-3305.64,0.00042521,2]
[321132348,1711906238673,-3305.64,0.00042521,2]
[321132349,1711906238683,-3305.64,0.00042521,2]
[321132350,1711906238692,-3305.64,0.00042521,2]
[321132351,1711906238701,-3305.64,0.00042521,120]
[321132352,1711906238711,-3305.64,0.00042521,120]
[321132353,1711906238721,-3305.64,0.00042521,120]
[321132354,1711906238731,-3305.64,0.00042521,120]
[321132355,1711906238741,-3305.64,0.00042521,120]
[321132356,1711906238751,-3305.64,0.00042521,120]
[321132357,1711906238761,-3305.64,0.00042521,120]
[321132358,1711906238770,-3305.64,0.00042521,120]
[321132359,1711906238780,-3305.64,0.00042521,120]
[321132360,1711906238789,-3305.64,0.00042521,120]
[321132361,1711906238798,-3305.64,0.00042521,120]
[321132362,1711906238808,-3305.64,0.00042521,120]
[321132363,1711906238817,-3305.64,0.00042521,120]
[321132364,1711906238826,-3305.64,0.00042521,120]
[321132365,1711906238835,-3305.82,0.00042521,120]
[321132366,1711906238845,-182.0,0.00042527,15]
[321132367,1711906238854,-156.67,0.00042537,2]
[321132368,1711906238864,-156.67,0.00042537,2]
[321132369,1711906238874,-156.67,0.00042537,2]
[321132370,1711906238883,-156.67,0.00042537,2]
[321132371,1711906238892,-156.67,0.00042537,2]
[321132372,1711906238901,-156.67,0.00042537,2]
[321132373,1711906238910,-156.67,0.00042537,2]
[321132374,1711906238920,-150.5,0.00042537,15]
[321132375,1711906238930,-182.0,0.00042537,15]
[321132376,1711906238939,-235.87,0.00042546,8]
[321132377,1711906238954,-164.51877778,0.00042549,2]
[321132378,1711906238964,-424.72957603,0.0004255,4]
[321132379,1711906238973,-1239.97598968,0.0004255,4]
[321132380,1711906238983,-806.5669211,0.0004255,4]
[321132381,1711906238992,-199.01993502,0.0004255,4]
[321132382,1711906239001,-248.44551428,0.0004255,4]
[321132383,1711906239011,-231.8431701,0.0004255,4]
[321132384,1711906239020,-400.0,0.0004255,2]
[321132385,1711906239029,-192.13279198,0.0004255,4]
[321132386,1711906239039,-762.41391669,0.0004255,4]
[321132387,1711906239048,-200.09069418,0.0004255,4]
[321132388,1711906239058,-182.61324904,0.0004255,4]
[321132389,1711906239068,-9030.78659323,0.0004255,4]
[321132390,1711906239077,-214.5273441,0.0004255,4]
[321132391,1711906239087,-157.38140137,0.0004255,4]
[321132392,1711906239097,-19236.99747036,0.0004255,4]
[321132393,1711906239106,-668.77110589,0.0004255,4]
[321132394,1711906239115,-2000.0,0.0004255,4]
[321132395,1711906239125,-3925.58750235,0.00042551,4]
[321132396,1711906239134,-155.0,0.00042551,4]
[321132397,1711906239144,-250.04326583,0.00042551,4]
[321132398,1711906239153,-205.23806172,0.00042551,4]
[321132399,1711906239163,-680.30955827,0.00042551,4]
[321132400,1711906239172,-373.63860962,0.00042551,4]
[321132401,1711906239183,-205.4134644,0.00042551,4]
[321132402,1711906239193,-361.03184535,0.00042551,4]
[321132403,1711906239202,-4174.77102397,0.00042551,4]
[321132404,1711906239212,-191.37408895,0.00042551,4]
[321132405,1711906239222,-289.90882872,0.00042551,4]
[321132406,1711906239231,-398.69349125,0.00042551,4]
[321132407,1711906239240,-155.59751938,0.00042551,4]
[321132408,1711906239250,-544.9204483,0.00042551,4]
[321132409,1711906239259,-404.94265568,0.00042551,4]
[321132410,1711906239269,-2000.0,0.00042551,2]
[321132411,1711906239278,-1111.48350798,0.00042551,4]
[321132412,1711906239287,-155.0,0.00042551,4]
[321132413,1711906239296,-1220.55596353,0.00042551,4]
[321132414,1711906239306,-298.0220833,0.00042551,4]
[321132415,1711906239314,-223.49312766,0.00042551,4]
[321132416,1711906239323,-6842.09011438,0.00042551,2]
[321132417,1711906239333,-311.25359119,0.00042551,4]
[321132418,1711906239343,-64851.06168613,0.00042552,2]
[321132419,1711906239352,-200.0,0.00042552,7]
[321132420,1711906239362,-67072.2202933,0.0004271,2]
[321132421,1711906239371,-1358.15356004,0.00042986,2]
[321132422,1711906239380,-171.50784,0.00043014,14]
[321132423,1711906239390,-437.46,0.00043267,2]
[321132424,1711906239399,-1312.38412,0.00043499,2]
[321132425,1711906239408,-171.50784,0.00043836,14]
[321132426,1711906239418,-373.09,0.0004392,2]
[321132427,1711906239427,-160.67232009,0.00043932,30]
[321132428,1711906239437,-1000.0,0.00044257,2]
[321132429,1711906239447,-2988.29756726,0.00044316,2]
[321132430,1711906239456,-2602.9548795,0.00044521,2]
[321132431,1711906239470,-5282.5627374,0.00044521,2]
[321132432,1711906239480,-420.20850959,0.0004461,19]
[321132433,1711906239489,-2298.83378762,0.00044842,2]
[321132434,1711906239499,-5194.63818491,0.00045,4]
[321132435,1711906239509,-1468.86040058,0.00045,120]
[321132436,1711906239519,-328.07527769,0.00045,4]
[321132437,1711906239530,-226.59,0.000451,7]
[321132438,1711906239540,-470.46745895,0.00046,2]
[321132439,1711906239549,-437.46,0.00046007,2]
[321132440,1711906239560,-373.09,0.00046184,2]
[321132441,1711906239570,-159.92,0.00046247,15]
[321132442,1711906239580,-420.20850959,0.00046799,22]
[321132443,1711906239591,-2988.29756726,0.00047077,2]
[321132444,1711906239601,-7885.5176169,0.00047262,2]
[321132445,1711906239611,-151.0,0.00048,120]
[321132446,1711906239621,-373.09,0.00048448,2]
[321132447,1711906239631,-1312.38412,0.00048499,2]
[321132448,1711906239641,-1038.0,0.000487,117]
[321132449,1711906239650,-420.20850959,0.00048988,25]
[321132450,1711906239661,-696.13981054,0.00049,30]
[321132451,1711906239670,-1000.0,0.00049174,2]
[321132452,1711906239680,-151.0,0.00049205,120]
[321132453,1711906239690,-1000.0,0.00049315,60]
[321132454,1711906239701,-169.60675175,0.00049598,2]
[321132455,1711906239710,-2988.29756726,0.00049837,2]